fUSD/lending_fUSD_20240629
["ID","MTS","AMOUNT","RATE_DAILY","PERIOD"]
[330634443,1719675033580,-150.0,0.00019964,2]
[330634444,1719675033590,-9638.53963274,0.00019967,2]
[330634445,1719675033600,-10095.444664,0.00019967,2]
[330634446,1719675033609,-687.748777,0.00019967,2]
[330634447,1719675033620,-3140.922298,0.00019967,2]
[330634448,1719675033629,-1757.425307,0.00019967,2]
[330634449,1719675033639,-3417.450348,0.00019967,2]
[330634450,1719675033648,-2019.088932,0.00019967,2]
[330634451,1719675033657,-150.0,0.00019967,2]
[330634452,1719675033667,-150.0,0.00019968,2]
[330634453,1719675033676,-1201.56351853,0.0001997,2]
[330634454,1719675033686,-400.59415942,0.0001997,2]
[330634455,1719675033695,-1935.07893951,0.00019972,2]
[330634456,1719675033704,-150.0,0.00019982,2]
[330634457,1719675033714,-150.0,0.00019984,2]
[330634458,1719675033723,-150.0,0.00019986,2]
[330634459,1719675033732,-165.08264122,0.00019987,2]
[330634460,1719675033742,-8227.6966423,0.00019988,2]
[330634461,1719675033751,-3129.5256465,0.00019988,2]
[330634462,1719675033761,-6429.8637372,0.00019988,2]
[330634463,1719675033770,-59156.4707798,0.00019988,2]
[330634464,1719675033780,-193.16948895,0.0001999,2]
[330634465,1719675033789,-150.0,0.00019996,2]
[330634466,1719675033799,-2182.25198703,0.00019998,2]
[330634467,1719675033809,-300.0,0.00019999,2]
[330634468,1719675033818,-300.0,0.00019999,2]
[330634469,1719675033827,-300.0,0.00019999,2]
[330634470,1719675033837,-300.0,0.00019999,2]
[330634471,1719675033847,-300.0,0.00019999,2]
[330634472,1719675033857,-300.0,0.00019999,2]
[330634473,1719675033866,-300.0,0.00019999,2]
[330634474,1719675033876,-300.0,0.00019999,2]
[330634475,1719675033886,-150.0,0.00019999,2]
[330634476,1719675033896,-500.0,0.00019999,2]
[330634477,1719675033905,-500.0,0.00019999,2]
[330634478,1719675033914,-206.84577717,0.00019999,2]
[330634479,1719675033924,-323.47930475,0.00019999,2]
[330634480,1719675033934,-500.0,0.00019999,2]
[330634481,1719675033943,-500.0,0.00019999,2]
[330634482,1719675033952,-500.0,0.00019999,2]
[330634483,1719675033963,-566.30859971,0.00019999,2]
[330634484,1719675033973,-500.0,0.00019999,2]
[330634485,1719675033983,-500.0,0.00019999,2]
[330634486,1719675033992,-500.0,0.00019999,2]
[330634487,1719675034002,-300.19180062,0.00019999,2]
[330634488,1719675034011,-499.99999999,0.00019999,2]
[330634489,1719675034021,-528.34953109,0.00019999,2]
[330634490,1719675034030,-497.72822381,0.00019999,2]
[330634491,1719675034040,-500.0,0.00019999,2]
[330634492,1719675034049,-500.0,0.00019999,2]
[330634493,1719675034058,-621.38673265,0.00019999,2]
[330634494,1719675034068,-500.0,0.00019999,2]
[330634495,1719675034077,-500.0,0.00019999,2]
[330634496,1719675034087,-500.0,0.00019999,2]
[330634497,1719675034096,-500.0,0.00019999,2]
[330634498,1719675034105,-500.0,0.00019999,2]
[330634499,1719675034115,-500.0,0.00019999,2]
[330634500,1719675034125,-500.0,0.00019999,2]
[330634501,1719675034135,-500.0,0.00019999,2]
[330634502,1719675034145,-500.0,0.00019999,2]
[330634503,1719675034155,-649.30681338,0.00019999,2]
[330634504,1719675034166,-500.0,0.00019999,2]
[330634505,1719675034176,-500.0,0.00019999,2]
[330634506,1719675034192,-500.0,0.00019999,2]
[330634507,1719675034202,-500.0,0.00019999,2]
[330634508,1719675034213,-367.11420145,0.00019999,2]
[330634509,1719675034224,-500.0,0.00019999,2]
[330634510,1719675034234,-500.0,0.00019999,2]
[330634511,1719675034243,-500.0,0.00019999,2]
[330634512,1719675034252,-500.0,0.00019999,2]
[330634513,1719675034264,-195.41092035,0.00019999,2]
[330634514,1719675034273,-500.0,0.00019999,2]
[330634515,1719675034283,-200.0,0.00019999,2]
[330634516,1719675034671,-292.33025676,0.0002,4]
[330634517,1719675034712,-251940.6088952,0.0002,2]
[330634518,1719675034727,-307.8334,0.0002,2]
[330634519,1719675034748,-292.61559334,0.0002,2]
[330634520,1719675034763,-376.28217556,0.0002,2]
[330634521,1719675034776,-595.5625,0.0002,2]
[330634522,1719675034789,-68519.08660027,0.0002,2]
[330634526,1719675038396,-12758.73684644,0.00016172,2]
[330634527,1719675038406,-166.0,0.00018135,2]
[330634528,1719675038417,-448.0,0.00018135,2]
[330634529,1719675038426,-228.96877398,0.00018899,2]
[330634530,1719675038436,-269.9716691,0.00018899,2]
[330634531,1719675038446,-227.02046916,0.00018919,2]
[330634532,1719675038455,-162.37573768,0.00019458,2]
[330634533,1719675038465,-162.37573768,0.00019558,2]
[330634534,1719675038474,-162.37573768,0.00019609,2]
[330634535,1719675038484,-162.37573768,0.00019652,2]
[330634536,1719675038494,-162.37573768,0.0001971,2]
[330634537,1719675038504,-162.37573768,0.0001971,2]
[330634538,1719675038514,-162.37573768,0.0001971,2]
[330634539,1719675038524,-162.37573768,0.0001971,2]
[330634540,1719675038534,-162.37573768,0.0001971,2]
[330634541,1719675038543,-162.37573768,0.0001971,2]
[330634542,1719675038553,-162.37573768,0.0001971,2]
[330634543,1719675038563,-162.37573768,0.0001971,2]
[330634544,1719675038572,-162.37573768,0.00019734,2]
[330634545,1719675038582,-162.37573768,0.00019755,2]
[330634546,1719675038592,-162.37573768,0.00019789,2]
[330634547,1719675038602,-162.37573768,0.00019789,2]
[330634548,1719675038612,-162.37573768,0.00019829,2]
[330634549,1719675038624,-162.37573768,0.00019829,2]
[330634550,1719675038633,-162.37573768,0.00019829,2]
[330634551,1719675038642,-162.37573768,0.00019829,2]
[330634552,1719675038652,-162.37573768,0.00019829,2]
[330634553,1719675038662,-162.37573768,0.00019829,2]
[330634554,1719675038671,-162.37573768,0.00019829,2]
[330634555,1719675038681,-162.37573768,0.00019829,2]
[330634556,1719675038690,-327032.69369613,0.0002,2]
[330634557,1719675038703,-6761.68653056,0.0002,2]
[330634558,1719675038748,-162.37573768,0.00019829,2]
[330634559,1719675038758,-41982.92513977,0.0002,2]
[330634560,1719675038770,-520.25670657,0.0002,2]
[330634561,1719675038781,-503.5054155,0.0002,2]
[330634562,1719675038792,-775.37331073,0.0002,2]
[330634572,1719675040102,-155.0,0.00019069,2]
[330634573,1719675040112,-162.37573768,0.00019829,2]
[330634574,1719675040122,-162.37573768,0.00019829,2]
[330634575,1719675040133,-162.37573768,0.00019829,2]
[330634576,1719675040143,-162.37573768,0.00019829,2]
[330634577,1719675040153,-162.37573768,0.00019829,2]
[330634578,1719675040164,-78.12088725,0.00019829,2]
[330634579,1719675040176,-84.25485043,0.00019829,2]
[330634580,1719675040186,-162.37573768,0.00019829,2]
[330634581,1719675040195,-162.37573768,0.00019829,2]
[330634582,1719675040206,-162.37573768,0.00019829,2]
[330634583,1719675040217,-1305.35993653,0.0002,2]
[330634584,1719675040230,-1537.79215374,0.0002,2]
[330634585,1719675040242,-1182081.78700069,0.0002,2]
[330634586,1719675040252,-1374.00398121,0.0002,2]
[330634587,1719675040263,-447.98005647,0.0002,2]
[330634588,1719675040273,-581.24842645,0.0002,2]
[330634589,1719675040284,-155.0,0.0002,2]
[330634590,1719675040295,-257.0,0.0002,2]
[330634591,1719675040306,-515.0,0.0002,2]
[330634592,1719675040317,-156.03660824,0.0002,2]
[330634593,1719675040327,-1060.40848357,0.0002,2]
[330634594,1719675040337,-155.41043954,0.0002,2]
[330634595,1719675040347,-1435.38705158,0.0002,2]
[330634596,1719675040356,-20118.42045228,0.0002,2]
[330634597,1719675040367,-3954.11623315,0.0002,2]
[330634598,1719675040377,-710.67887976,0.0002,7]
[330634599,1719675040387,-155.25696509,0.0002,2]
[330634600,1719675040397,-310.08129584,0.0002,2]
[330634601,1719675040407,-1014.31068322,0.0002,10]
[330634602,1719675040418,-7187.71828881,0.0002,2]
[330634603,1719675040428,-1274.88625925,0.0002,2]
[330634604,1719675040438,-867.31049744,0.0002,2]
[330634605,1719675040447,-327.07160495,0.0002,2]
[330634606,1719675040457,-200.50954428,0.0002,2]
[330634607,1719675040468,-7820.4880991,0.0002,2]
[330634608,1719675040478,-5785.53230322,0.0002,7]
[330634609,1719675040487,-6275.55847085,0.0002,2]
[330634610,1719675040497,-941.0,0.0002,2]
[330634611,1719675040507,-181.0,0.0002,2]
[330634612,1719675040517,-1446.48378064,0.0002,2]
[330634613,1719675040527,-576.37589657,0.0002,2]
[330634614,1719675040537,-150.0,0.0002,2]
[330634615,1719675040547,-1248.5725,0.0002,2]
[330634616,1719675040557,-150.0,0.0002,2]
[330634617,1719675040567,-275.5,0.0002,2]
[330634618,1719675040577,-37198.47569709,0.0002,2]
[330634619,1719675040592,-790.157,0.0002,2]
[330634620,1719675040602,-204.0,0.0002003,2]
[330634621,1719675040612,-299.0,0.0002003,2]
[330634622,1719675040622,-172.671284,0.00020049,2]
[330634623,1719675040632,-182.164998,0.00020049,2]
[330634624,1719675040642,-179.659095,0.00020049,2]
[330634625,1719675040652,-174.650504,0.00020049,2]
[330634626,1719675040662,-2100.0,0.00020059,2]
[330634627,1719675040672,-300.0,0.00020059,2]
[330634628,1719675040682,-1244.80699974,0.00020063,2]
[330634629,1719675040692,-7600.0,0.0002008,2]
[330634630,1719675040701,-188.0894751,0.00020113,3]
[330634631,1719675040711,-3887.90280256,0.00020113,2]
[330634632,1719675040721,-3766.59610552,0.00020113,2]
[330634633,1719675040731,-1975.74401489,0.00020134,2]
[330634634,1719675040740,-224.34929961,0.00020164,2]
[330634635,1719675040750,-150.0,0.00020187,2]
[330634636,1719675040759,-172.0,0.0002019,2]
[330634637,1719675040770,-2017.7706914,0.000202,2]
[330634638,1719675040780,-151.0,0.00020213,2]
[330634639,1719675040790,-151.0,0.00020213,2]
[330634640,1719675040800,-155.343404,0.00020213,2]
[330634641,1719675040810,-151.0,0.00020213,2]
[330634642,1719675040820,-151.0,0.00020213,2]
[330634643,1719675040830,-151.0,0.00020213,2]
[330634644,1719675040840,-285.695006,0.00020213,2]
[330634645,1719675040850,-285.695006,0.00020213,2]
[330634646,1719675040860,-186.126762,0.00020213,2]
[330634647,1719675040869,-151.0,0.00020213,2]
[330634648,1719675040879,-477.931669,0.00020213,2]
[330634649,1719675040889,-151.0,0.00020213,2]
[330634650,1719675040899,-477.931669,0.00020213,2]
[330634651,1719675040908,-302.327884,0.00020213,2]
[330634652,1719675040918,-189.956169,0.00020213,2]
[330634653,1719675040927,-302.327884,0.00020213,2]
[330634654,1719675040937,-189.956169,0.00020213,2]
[330634655,1719675040947,-151.0,0.00020213,2]
[330634656,1719675040956,-151.0,0.00020213,2]
[330634657,1719675040968,-151.0,0.00020213,2]
[330634658,1719675040979,-151.0,0.00020213,2]
[330634659,1719675040988,-151.0,0.00020213,2]
[330634660,1719675040999,-151.0,0.00020213,2]
[330634661,1719675041008,-151.0,0.00020213,2]
[330634662,1719675041018,-151.0,0.00020213,2]
[330634663,1719675041028,-151.0,0.00020213,2]
[330634664,1719675041038,-151.0,0.00020213,2]
[330634665,1719675041048,-151.0,0.00020213,2]
[330634666,1719675041058,-151.0,0.00020213,2]
[330634667,1719675041068,-151.0,0.00020213,2]
[330634668,1719675041078,-672.58257,0.00020213,2]
[330634669,1719675041088,-672.58257,0.00020213,2]
[330634670,1719675041098,-381.89717,0.00020213,2]
[330634671,1719675041111,-151.0,0.00020213,2]
[330634672,1719675041120,-228.510444,0.00020213,2]
[330634673,1719675041130,-151.0,0.00020213,2]
[330634674,1719675041140,-228.510444,0.00020213,2]
[330634675,1719675041149,-381.89717,0.00020213,2]
[330634676,1719675041159,-151.0,0.00020213,2]
[330634677,1719675041169,-151.0,0.00020213,2]
[330634678,1719675041179,-821.419814,0.00020213,2]
[330634679,1719675041188,-151.0,0.00020213,2]
[330634680,1719675041198,-821.419814,0.00020213,2]
[330634681,1719675041207,-151.0,0.00020213,2]
[330634682,1719675041221,-153.003556,0.00020213,2]
[330634683,1719675041231,-151.0,0.00020213,2]
[330634684,1719675041240,-151.0,0.00020213,2]
[330634685,1719675041250,-151.0,0.00020213,2]
[330634686,1719675041261,-151.0,0.00020213,2]
[330634687,1719675041271,-153.003556,0.00020213,2]
[330634688,1719675041280,-151.0,0.00020213,2]
[330634689,1719675041290,-151.0,0.00020213,2]
[330634690,1719675041301,-151.0,0.00020213,2]
[330634691,1719675041312,-151.0,0.00020213,2]
[330634692,1719675041321,-151.0,0.00020213,2]
[330634693,1719675041331,-151.0,0.00020213,2]
[330634694,1719675041340,-151.0,0.00020213,2]
[330634695,1719675041350,-151.0,0.00020213,2]
[330634696,1719675041562,-151.0,0.00020213,2]
[330634697,1719675041594,-151.0,0.00020213,2]
[330634698,1719675041604,-151.0,0.00020213,2]
[330634699,1719675041613,-232.084032,0.00020213,2]
[330634700,1719675041623,-151.0,0.00020213,2]
[330634701,1719675041634,-151.0,0.00020213,2]
[330634702,1719675041644,-151.0,0.00020213,2]
[330634703,1719675041657,-151.0,0.00020213,2]
[330634704,1719675041667,-224.291043,0.00020213,2]
[330634705,1719675041677,-151.0,0.00020213,2]
[330634706,1719675041687,-179.515258,0.00020213,2]
[330634707,1719675041696,-204.158447,0.00020213,2]
[330634708,1719675041706,-151.0,0.00020213,2]
[330634709,1719675041715,-151.0,0.00020213,2]
[330634710,1719675041725,-151.0,0.00020213,2]
[330634711,1719675041735,-151.0,0.00020213,2]
[330634712,1719675041744,-487.833167,0.00020213,2]
[330634713,1719675041754,-487.833167,0.00020213,2]
[330634714,1719675041764,-151.0,0.00020213,2]
[330634715,1719675041774,-151.0,0.00020213,2]
[330634716,1719675041783,-384.415112,0.00020213,2]
[330634717,1719675041793,-384.415112,0.00020213,2]
[330634718,1719675041803,-151.0,0.00020213,2]
[330634719,1719675041812,-151.0,0.00020213,2]
[330634720,1719675041821,-179.49623,0.00020213,2]
[330634721,1719675041831,-151.0,0.00020213,2]
[330634722,1719675041841,-151.0,0.00020213,2]
[330634723,1719675041850,-654.935257,0.00020213,2]
[330634724,1719675041860,-151.0,0.00020213,2]
[330634725,1719675041869,-654.935257,0.00020213,2]
[330634726,1719675041880,-151.0,0.00020213,2]
[330634727,1719675041890,-151.0,0.00020213,2]
[330634728,1719675041900,-151.0,0.00020213,2]
[330634729,1719675041909,-151.0,0.00020213,2]
[330634730,1719675041919,-166.249795,0.00020213,2]
[330634731,1719675041928,-463.310858,0.00020213,2]
[330634732,1719675041938,-4111.132409,0.00020213,2]
[330634733,1719675041947,-463.310858,0.00020213,2]
[330634734,1719675041958,-4111.132409,0.00020213,2]
[330634735,1719675041968,-494.214039,0.00020213,2]
[330634736,1719675041979,-494.214039,0.00020213,2]
[330634737,1719675041989,-421.566168,0.00020213,2]
[330634738,1719675041998,-421.566168,0.00020213,2]
[330634739,1719675042008,-151.0,0.00020213,2]
[330634740,1719675042018,-151.0,0.00020213,2]
[330634741,1719675042028,-151.0,0.00020213,2]
[330634742,1719675042039,-925.312472,0.00020213,2]
[330634743,1719675042048,-925.312472,0.00020213,2]
[330634744,1719675042058,-8403.655252,0.00020213,2]
[330634745,1719675042068,-3405.348832,0.00020213,2]
[330634746,1719675042078,-267.3522,0.00020213,2]
[330634747,1719675042087,-239.370554,0.00020213,2]
[330634748,1719675042097,-15704.611491,0.00020213,2]
[330634749,1719675042107,-17087.251738,0.00020213,2]
[330634750,1719675042116,-10095.444664,0.00020213,2]
[330634751,1719675042126,-687.748777,0.00020213,2]
[330634752,1719675042136,-3140.922298,0.00020213,2]
[330634753,1719675042147,-1757.425307,0.00020213,2]
[330634754,1719675042157,-3417.450348,0.00020213,2]
[330634755,1719675042166,-2019.088932,0.00020213,2]
[330634756,1719675042176,-182.745874,0.00020213,2]
[330634757,1719675042185,-296.70779,0.0002024,2]
[330634758,1719675042196,-151.0,0.00020252,2]
[330634759,1719675042206,-1935.07893951,0.00020283,2]
[330634760,1719675042219,-1065.95804914,0.0002036,2]
[330634761,1719675042228,-1244.80699974,0.00020361,2]
[330634762,1719675042238,-1975.74401489,0.00020368,2]
[330634763,1719675042247,-172.671284,0.00020378,2]
[330634764,1719675042258,-182.164998,0.00020378,2]
[330634765,1719675042267,-179.659095,0.00020378,2]
[330634766,1719675042276,-174.650504,0.00020378,2]
[330634767,1719675042286,-224.34929961,0.00020439,2]
[330634768,1719675042298,-8403.655252,0.0002046,2]
[330634769,1719675042308,-3405.348832,0.0002046,2]
[330634770,1719675042317,-267.3522,0.0002046,2]
[330634771,1719675042326,-239.370554,0.0002046,2]
[330634772,1719675042336,-15704.611491,0.0002046,2]
[330634773,1719675042345,-17087.251738,0.0002046,2]
[330634774,1719675042355,-10095.444664,0.0002046,2]
[330634775,1719675042364,-687.748777,0.0002046,2]
[330634776,1719675042373,-3140.922298,0.0002046,2]
[330634777,1719675042383,-1757.425307,0.0002046,2]
[330634778,1719675042393,-3417.450348,0.0002046,2]
[330634779,1719675042403,-2019.088932,0.0002046,2]
[330634780,1719675042413,-600.0,0.00020463,2]
[330634781,1719675042422,-300.0,0.00020501,2]
[330634782,1719675042432,-300.0,0.00020501,2]
[330634783,1719675042441,-300.0,0.00020501,2]
[330634784,1719675042450,-300.0,0.00020501,2]
[330634785,1719675042460,-300.0,0.00020501,2]
[330634786,1719675042470,-300.0,0.00020501,2]
[330634787,1719675042479,-300.0,0.00020501,2]
[330634788,1719675042489,-300.0,0.00020501,2]
[330634789,1719675042498,-261459.0,0.00020502,2]
[330634790,1719675042508,-151.0,0.00020502,2]
[330634792,1719675042517,-151.0,0.00020502,2]
[330634794,1719675042526,-151.0,0.00020502,2]
[330634795,1719675042535,-151.0,0.00020502,2]
[330634796,1719675042544,-245.687829,0.00020502,2]
[330634797,1719675042554,-151.0,0.00020502,2]
[330634798,1719675042563,-151.0,0.00020502,2]
[330634799,1719675042573,-151.0,0.00020502,2]
[330634800,1719675042582,-269.328752,0.00020502,2]
[330634801,1719675042591,-151.0,0.00020502,2]
[330634802,1719675042601,-151.0,0.00020502,2]
[330634803,1719675042610,-151.0,0.00020502,2]
[330634804,1719675042620,-151.0,0.00020502,2]
[330634805,1719675042629,-151.0,0.00020502,2]
[330634807,1719675042639,-262.39025,0.00020502,2]
[330634809,1719675042648,-285.695006,0.00020502,2]
[330634812,1719675042658,-285.695006,0.00020502,2]
[330634814,1719675042668,-151.0,0.00020502,2]
[330634815,1719675042678,-477.931669,0.00020502,2]
[330634817,1719675042688,-182.554306,0.00020502,2]
[330634818,1719675042698,-477.931669,0.00020502,2]
[330634819,1719675042707,-302.327884,0.00020502,2]
[330634820,1719675042717,-189.956169,0.00020502,2]
[330634821,1719675042727,-302.327884,0.00020502,2]
[330634822,1719675042736,-189.956169,0.00020502,2]
[330634823,1719675042745,-151.0,0.00020502,2]
[330634824,1719675042755,-151.0,0.00020502,2]
[330634825,1719675042765,-151.0,0.00020502,2]
[330634826,1719675042774,-151.0,0.00020502,2]
[330634827,1719675042784,-151.0,0.00020502,2]
[330634828,1719675042794,-151.0,0.00020502,2]
[330634829,1719675042805,-151.0,0.00020502,2]
[330634830,1719675042814,-151.0,0.00020502,2]
[330634831,1719675042824,-151.0,0.00020502,2]
[330634832,1719675042833,-151.0,0.00020502,2]
[330634833,1719675042843,-151.0,0.00020502,2]
[330634834,1719675042853,-151.0,0.00020502,2]
[330634835,1719675042862,-151.0,0.00020502,2]
[330634836,1719675042872,-672.58257,0.00020502,2]
[330634837,1719675042881,-672.58257,0.00020502,2]
[330634838,1719675042891,-381.89717,0.00020502,2]
[330634839,1719675042900,-151.0,0.00020502,2]
[330634840,1719675042910,-228.510444,0.00020502,2]
[330634842,1719675042919,-151.0,0.00020502,2]
[330634844,1719675042929,-228.510444,0.00020502,2]
[330634846,1719675042938,-381.89717,0.00020502,2]
[330634847,1719675042947,-151.0,0.00020502,2]
[330634849,1719675042957,-151.0,0.00020502,2]
[330634851,1719675042968,-821.419814,0.00020502,2]
[330634853,1719675042979,-267.001176,0.00020502,2]
[330634856,1719675042991,-821.419814,0.00020502,2]
[330634857,1719675043001,-151.0,0.00020502,2]
[330634858,1719675043011,-153.003556,0.00020502,2]
[330634859,1719675043020,-151.0,0.00020502,2]
[330634860,1719675043030,-151.0,0.00020502,2]
[330634861,1719675043040,-151.0,0.00020502,2]
[330634862,1719675043049,-151.0,0.00020502,2]
[330634863,1719675043059,-153.003556,0.00020502,2]
[330634864,1719675043068,-151.0,0.00020502,2]
[330634865,1719675043078,-151.0,0.00020502,2]
[330634866,1719675043088,-151.0,0.00020502,2]
[330634867,1719675043098,-151.0,0.00020502,2]
[330634868,1719675043108,-151.0,0.00020502,2]
[330634869,1719675043117,-151.0,0.00020502,2]
[330634870,1719675043127,-151.0,0.00020502,2]
[330634871,1719675043139,-151.0,0.00020502,2]
[330634872,1719675043150,-151.0,0.00020502,2]
[330634873,1719675043159,-151.0,0.00020502,2]
[330634874,1719675043172,-151.0,0.00020502,2]
[330634875,1719675043181,-151.0,0.00020502,2]
[330634876,1719675043192,-151.0,0.00020502,2]
[330634877,1719675043201,-151.0,0.00020502,2]
[330634878,1719675043210,-151.0,0.00020502,2]
[330634879,1719675043227,-151.0,0.00020502,2]
[330634880,1719675043236,-151.0,0.00020502,2]
[330634881,1719675043246,-151.0,0.00020502,2]
[330634882,1719675043256,-151.0,0.00020502,2]
[330634883,1719675043267,-151.0,0.00020502,2]
[330634884,1719675043276,-487.833167,0.00020502,2]
[330634885,1719675043286,-487.833167,0.00020502,2]
[330634886,1719675043299,-151.0,0.00020502,2]
[330634887,1719675043310,-151.0,0.00020502,2]
[330634888,1719675043320,-384.415112,0.00020502,2]
[330634889,1719675043330,-384.415112,0.00020502,2]
[330634890,1719675043341,-151.0,0.00020502,2]
[330634891,1719675043350,-151.0,0.00020502,2]
[330634892,1719675043360,-152.052186,0.00020502,2]
[330634893,1719675043370,-151.0,0.00020502,2]
[330634894,1719675043381,-654.935257,0.00020502,2]
[330634895,1719675043390,-151.0,0.00020502,2]
[330634896,1719675043400,-654.935257,0.00020502,2]
[330634897,1719675043409,-151.0,0.00020502,2]
[330634898,1719675043419,-151.0,0.00020502,2]
[330634899,1719675043428,-151.0,0.00020502,2]
[330634900,1719675043437,-151.0,0.00020502,2]
[330634901,1719675043447,-463.310858,0.00020502,2]
[330634902,1719675043457,-4111.132409,0.00020502,2]
[330634903,1719675043466,-4111.132409,0.00020502,2]
[330634904,1719675043476,-463.310858,0.00020502,2]
[330634905,1719675043485,-494.214039,0.00020502,2]
[330634906,1719675043495,-494.214039,0.00020502,2]
[330634907,1719675043504,-421.566168,0.00020502,2]
[330634908,1719675043514,-421.566168,0.00020502,2]
[330634909,1719675043523,-151.0,0.00020502,2]
[330634910,1719675043533,-151.0,0.00020502,2]
[330634911,1719675043542,-151.0,0.00020502,2]
[330634912,1719675043552,-291.933417,0.00020502,2]
[330634913,1719675043561,-925.312472,0.00020502,2]
[330634914,1719675043570,-334.204094,0.00020502,2]
[330634915,1719675043580,-925.312472,0.00020502,2]
[330634916,1719675043591,-334.204094,0.00020502,2]
[330634917,1719675043601,-171.93,0.00020548,2]
[330634918,1719675043610,-472.275258,0.00020548,2]
[330634919,1719675043619,-472.275258,0.00020548,2]
[330634920,1719675043629,-472.275258,0.00020548,2]
[330634921,1719675043639,-472.275258,0.00020548,2]
[330634922,1719675043649,-150.0,0.00020558,2]
[330634923,1719675043658,-190.0,0.0002058,2]
[330634924,1719675043668,-1935.07893951,0.00020593,2]
[330634925,1719675043677,-1975.74401489,0.00020602,2]
[330634926,1719675043687,-165.502603,0.00020632,2]
[330634927,1719675043696,-168.42217057,0.00020649,2]
[330634928,1719675043705,-1244.80699974,0.00020658,2]
[330634929,1719675043714,-151.0,0.00020675,2]
[330634930,1719675043723,-150.0,0.00020692,2]
[330634931,1719675043733,-8403.655252,0.00020706,2]
[330634932,1719675043742,-3405.348832,0.00020706,2]
[330634933,1719675043752,-267.3522,0.00020706,2]
[330634934,1719675043761,-239.370554,0.00020706,2]
[330634935,1719675043771,-15704.611491,0.00020706,2]
[330634936,1719675043781,-17087.251738,0.00020706,2]
[330634937,1719675043790,-10095.444664,0.00020706,2]
[330634938,1719675043800,-687.748777,0.00020706,2]
[330634939,1719675043809,-3140.922298,0.00020706,2]
[330634940,1719675043818,-1757.425307,0.00020706,2]
[330634941,1719675043827,-3417.450348,0.00020706,2]
[330634942,1719675043837,-2019.088932,0.00020706,2]
[330634943,1719675043846,-172.671284,0.00020706,2]
[330634944,1719675043856,-182.164998,0.00020706,2]
[330634945,1719675043865,-179.659095,0.00020706,2]
[330634946,1719675043874,-174.650504,0.00020706,2]
[330634947,1719675043884,-177.418141,0.00020706,2]
[330634948,1719675043894,-182.745874,0.00020706,2]
[330634949,1719675044208,-167.509277,0.00020706,2]
[330634950,1719675044281,-224.34929961,0.00020715,2]
[330634951,1719675044291,-2232.83139324,0.00020785,2]
[330634952,1719675044303,-672.58257,0.00020799,2]
[330634953,1719675044313,-672.58257,0.00020799,2]
[330634954,1719675044323,-381.89717,0.00020799,2]
[330634955,1719675044332,-151.0,0.00020799,2]
[330634956,1719675044341,-228.510444,0.00020799,2]
[330634957,1719675044351,-245.098639,0.00020799,2]
[330634958,1719675044360,-228.510444,0.00020799,2]
[330634959,1719675044370,-381.89717,0.00020799,2]
[330634960,1719675044379,-151.0,0.00020799,2]
[330634961,1719675044389,-151.0,0.00020799,2]
[330634962,1719675044398,-821.419814,0.00020799,2]
[330634963,1719675044408,-821.419814,0.00020799,2]
[330634964,1719675044418,-153.003556,0.00020799,2]
[330634965,1719675044427,-151.0,0.00020799,2]
[330634966,1719675044436,-151.0,0.00020799,2]
[330634967,1719675044445,-151.0,0.00020799,2]
[330634968,1719675044455,-151.0,0.00020799,2]
[330634969,1719675044464,-153.003556,0.00020799,2]
[330634970,1719675044474,-151.0,0.00020799,2]